Cogmind - Beta 16 @@@ ROGUE MODE // 2025.10.31 @ 06:16:38 Player: beans Result: Destroyed by S-10 Pest with Light Assault Rifle Performance ------------- Evolutions (0) 0 Regions Visited (1) 200 Robots Destroyed (11) 55 Value Destroyed (247) 247 Prototype IDs (0) 0 Alien Tech Used (0) 0 Bonus (0) 0 TOTAL SCORE: 502 Bonus ------- None Cogmind --------- Core Integrity 0/250 Matter 295/300 Energy 96/100 System Corruption 0% Temperature Cool (0) Movement Core (50) Location -10/Materials Parts ------- > --- POWER (1) -------- (None) > --- PROPULSION (2) --- (None) > --- UTILITY (2) ------ (None) > --- WEAPON (2) ------- (None) > --- INVENTORY (5) ---- Large Storage Unit High-capacity Matter Pod (89) High-capacity Matter Pod (0) Peak State ------------ > --- POWER ------------ Ion Engine > --- PROPULSION ------- Light Treads > --- UTILITY ---------- Improved Heat Sink Large Storage Unit > --- WEAPON ----------- Particle Gun Light Assault Rifle > --- INVENTORY -------- High-capacity Matter Pod High-capacity Matter Pod [Rating: 9] Favorites ----------- Power Ion Engine Engine Ion Engine Propulsion Light Treads Treads Light Treads Flight Unit Flight Unit Utility Large Storage Unit Device Improved Heat Sink Storage Large Storage Unit Weapon Light Assault Rifle Energy Gun Particle Gun Ballistic Gun Light Assault Rifle Build | -11 -10 ------- Run | Yrd Mat Slots Evolved . | . . Power . | . . Propulsion . | . . Utility . | . . Weapon . | . . Parts Attached 10 | 4 6 Power 1 | . 1 Engine 1 | . 1 Core . | . . Reactor . | . . Propulsion 3 | 2 1 Treads 2 | 2 . Leg . | . . Wheel . | . . Hover . | . . Flight 1 | . 1 Utility 2 | . 2 Device 1 | . 1 Storage 1 | . 1 Processor . | . . Hackware . | . . Protection . | . . Artifact . | . . Weapon 4 | 2 2 Energy Gun 1 | . 1 Energy Cannon . | . . Ballistic Gun 3 | 2 1 Ballistic Cannon . | . . Launcher . | . . Special Weapon . | . . Impact Weapon . | . . Slashing Weapon . | . . Piercing Weapon . | . . Special Melee Weapon . | . . Unidentified Prototypes . | . . Parts Lost 5 | . 5 Power . | . . Propulsion 3 | . 3 Utility . | . . Weapon 2 | . 2 Highest Loss Streak 2 | . 2 To Critical Strikes . | . . Average Backups . | . . Power . | . . Propulsion . | . . Utility . | . . Weapon . | . . Tool/Special . | . . Unused Backups 2 | . 2 Power . | . . Propulsion . | . . Utility 2 | . 2 Weapon . | . . Tool/Special . | . . Average Slot Usage (%) 58 | . 58 Engine 1 | . 1 Treads 23 | . 23 Device 2 | . 2 Storage 4 | . 4 Energy Gun 2 | . 2 Ballistic Gun 22 | . 22 Peak Build Rating 9 | 4 9 Average Rating 4 | 2 4 On Entrance 2 | . 4 Avg Prop Armor Cover (%) . | . . Naked Turns 6 | . 6 Heaviest Build 30 | 2 30 Greatest Support 40 | 40 40 Greatest Overweight (x) 3 | . 3 Average Overweight (x) . | . . Largest Inventory Capacity 15 | 5 15 Average Capacity 7 | 5 8 Most Carried 4 | 4 4 Average Carried . | . . Final Capacity 5 | 5 5 Final Carried 3 | . 3 Class Distribution -------------------- 100% | Mutant Dominant Class ---------------- Mutant | -10/Materials Resources | -11 -10 ----------- Run | Yrd Mat Matter Collected 437 | 82 355 Remotely . | . . Salvage Created 380 | . 380 Parts 17 | . 17 Haulers Intercepted 2 | . 2 Recyclers Shooed . | . . Parts Field Recycled . | . . Retrieved Matter . | . . Parts Self-Destructed . | . . Prevented . | . . Parts Restored . | . . Kills | -11 -10 ------- Run | Yrd Mat Combat Hostiles Destroyed 8 | . 8 Melee 2 | . 2 Guns 6 | . 6 Classes Destroyed 4 | . 4 Hauler 2 | . 2 Recycler 1 | . 1 Swarmer 2 | . 2 Grunt 6 | . 6 Best Kill Streak 2 | . 2 Combat Bots Only 2 | . 2 Max Kills in Single Turn 1 | . 1 Gunslinging . | . . Exploded . | . . Melee 1 | . 1 Uniques/NPCs Destroyed . | . . Combat | -11 -10 -------- Run | Yrd Mat Hostile Shots Fired 107 | . 107 Missed 25 | . 25 Hits 82 | . 82 Projectile 82 | . 82 Critical Strikes 2 | . 2 Damage Taken 886 | . 886 Core 252 | . 252 Absorbed by Shields . | . . Core Remaining (%) 100 | 100 . Volleys Fired 54 | . 54 Largest 2 | . 2 Hottest 85 | . 85 Shots Fired 90 | . 90 Gun 90 | . 90 Cannon . | . . Launcher . | . . Special . | . . Kinetic 82 | . 82 Thermal 8 | . 8 Explosive . | . . Electromagnetic . | . . Robot Hit Streak 9 | . 9 Robot Miss Streak 4 | . 4 Penetration Max . | . . Secondary Targets 2 | . 2 Max Gunslinging Chain 1 | . 1 Shots Hit Robots 56 | . 56 Core Hits 17 | . 17 Critical Kills . | . . Critical Parts Destroyed . | . . Critical Strikes . | . . Melee Attacks . | . . Impact . | . . Slashing . | . . Piercing . | . . Sneak Attacks . | . . Combat Hostiles . | . . Follow-up Attacks . | . . Damage Inflicted 564 | . 564 Guns 556 | . 556 Cannons . | . . Explosions . | . . Melee . | . . Ramming 8 | . 8 Kinetic 480 | . 480 Thermal 76 | . 76 Explosive . | . . Electromagnetic . | . . Impact . | . . Slashing . | . . Piercing . | . . Highest Corruption . | . . Average Corruption . | . . Corruption Purged . | . . Corruption Blocked . | . . Overload Shots . | . . Overflow Damage . | . . Projectiles . | . . Explosions . | . . Melee . | . . Knockbacks . | . . Impact . | . . Kinetic . | . . Secondary . | . . Self-Inflicted Damage . | . . Shots . | . . Rammed 6 | . 6 Targets Rammed 8 | . 8 Kicked . | . . Crushed 2 | . 2 Highest Temperature 32 | . 32 Average Temperature 8 | . 8 Received Heat Transfer 462 | . 462 Siege Activations . | . . Martial Activations . | . . Shielding Activations . | . . Robots Disrupted . | . . Combat Hostiles . | . . Robots Corrupted . | . . Combat Hostiles . | . . Parts Fried . | . . Impact Corruptions . | . . Robots Melted . | . . Combat Hostiles . | . . Parts Melted 1 | . 1 Heat Transferred 185 | . 185 Parts Sabotaged . | . . Parts Stolen . | . . Parts Stripped . | . . Power Chain Reactions . | . . Alert | -11 -10 ------- Run | Yrd Mat Maximum Alert Level . | . . Low Security (%) 100 | 100 100 Level 1 . | . . Level 2 . | . . Level 3 . | . . Level 4 . | . . Level 5 . | . . High Security . | . . Max Security . | . . Peak Influence 50 | . 50 Initial . | . . Average 11 | . 12 Influence Increases 224 | . 224 Destroy 0b10 Robot/C 160 | . 160 Destroy 0b10 Robot/NC 15 | . 15 Destroy Leader 34 | . 34 Lose Combat Pursuer 15 | . 15 Influence Decreases 202 | . 202 Time Decay 162 | . 162 Lost Part 40 | . 40 Squads Dispatched 2 | . 2 Investigation . | . . Extermination . | . . Reinforcement 2 | . 2 Assault . | . . Garrison . | . . Intercept . | . . Searches Triggered . | . . Construction Impeded . | . . Haulers Reinforced . | . . Active Scanning Responses . | . . Cargo Convoy Interrupts . | . . Stealth | -11 -10 --------- Run | Yrd Mat Distress Signals 2 | . 2 Communications Jammed . | . . Distress Signals . | . . Times Spotted 20 | . 20 Peak Tracking Total 7 | . 7 Tactical Retreats 1 | . 1 Traps | -11 -10 ------- Run | Yrd Mat Traps Triggered . | . . Indirectly . | . . Trap Hack Attempts . | . . Triggered . | . . Disarmed . | . . Reprogrammed . | . . Reused . | . . Traps Extracted . | . . Installed . | . . Triggered . | . . Machines | -11 -10 ---------- Run | Yrd Mat Machines Disabled . | . . Max in Single Turn . | . . Machines Repaired . | . . Machines Dismantled . | . . Machines Sabotaged . | . . Overloaded Fab Kills . | . . Hacking | -11 -10 --------- Run | Yrd Mat Machines Accessed 1 | . 1 Terminals 1 | . 1 Fabricators . | . . Repair Stations . | . . Recycling Units . | . . Scanalyzers . | . . Garrison Access . | . . Total Hacks 3 | . 3 Successful 2 | . 2 Failed 1 | . 1 Catastrophic 1 | . 1 Database Lockouts . | . . Manual 1 | . 1 Terminals 3 | . 3 Fabricators . | . . Repair Stations . | . . Recycling Units . | . . Scanalyzers . | . . Garrison Access . | . . Terminal Hacks 2 | . 2 Alert Level 1 | . 1 Locate Traps 1 | . 1 Fabricator Hacks . | . . Repair Station Hacks . | . . Recycling Unit Hacks . | . . Scanalyzer . | . . Garrison Access Hacks . | . . Unauthorized Hacks . | . . Terminals . | . . Fabricators . | . . Repair Stations . | . . Recycling Units . | . . Scanalyzers . | . . Garrison Access . | . . Data Cores Recovered . | . . Used . | . . Hacking Detections . | . . Full Trace Events . | . . Feedback Events . | . . Feedback Blocked . | . . Robot Schematics Acquired . | . . Robots Built . | . . Authchips . | . . Time . | . . Total Robot Build Rating . | . . Part Schematics Acquired . | . . Parts Built . | . . Authchips . | . . Time . | . . Total Part Build Rating . | . . Part Studies Acquired . | . . Parts Repaired . | . . Time . | . . Parts Recycled . | . . Recycled Matter . | . . Retrieved Matter . | . . Retrieved Components . | . . Parts Scanalyzed . | . . Part Schematics Acquired . | . . Parts Damaged . | . . Bothacking | -11 -10 ------------ Run | Yrd Mat Used RIF Installer . | . . Robots Hacked . | . . Non-combat . | . . Combat . | . . Robot Hacks Applied . | . . Relay Couplers Released . | . . Fabnet Peak Effective % . | . . Robots Rewired . | . . Allies Hacked . | . . Hacks Repelled . | . . Allies | -11 -10 -------- Run | Yrd Mat Total Allies . | . . Largest Group . | . . Highest-Rated Group . | . . Highest-Rated Ally . | . . Total Orders . | . . Ally Attacks . | . . Total Damage . | . . Kills . | . . Allies Corrupted . | . . Allies Melted . | . . Intel | -11 -10 ------- Run | Yrd Mat Active Infowar (turns) . | . . Robot Analysis Total . | . . Derelict Logs Recovered . | . . Drone Launches . | . . Drone Recoveries . | . . Exploration | -11 -10 ------------- Run | Yrd Mat Turns Passed 576 | 40 536 Spaces Moved 252 | 31 221 Core 25 | 15 10 Treads 224 | 16 208 Legs . | . . Wheels . | . . Hover . | . . Flight 3 | . 3 Fastest Speed 40 | 50 40 Average Speed 162 | 106 170 Slowest Speed 240 | 160 240 Overloaded Moves . | . . Propulsion Burnouts . | . . Robots Hopped . | . . Potential Cave-ins . | . . Cave-ins Triggered . | . . Exploration Rate (%) 24 | 3 46 Regions Visited 1 Branch Regions . Pre-discovered Areas . | . . Known Exits Taken . | . . Unknown Exits Taken 1 | 1 . Scrap Searched . | . . Spaces Dug . | . . Terrain Destroyed . | . . Melee . | . . Projectile . | . . AOE . | . . Terrain Rammed . | . . Walls Destroyed . | . . Machines Disabled . | . . Actions | -11 -10 --------- Run | Yrd Mat Total 341 | 38 303 Wait . | . . Move 251 | 30 221 Hop . | . . Pick Up 12 | 4 8 Fast Attach . | . . Attach 10 | 4 6 Detach 1 | . 1 Swap 1 | . 1 Drop 4 | . 4 Fire 54 | . 54 Melee . | . . Ram . | . . Kick . | . . Crush 8 | . 8 Escape Stasis . | . . Rewire . | . . Trap . | . . Miscellaneous . | . . Route ------- -11/Scrapyard -10/Materials History --------- Turn | Location | Event 5 | -11/Scrapyard | Discovered new exit (range 15) 41 | -11/Scrapyard | Entered Materials 313 | -10/Materials | Build established: Mutant 547 | -10/Materials | Core integrity fell below 50% 573 | -10/Materials | Core integrity fell below 20% 577 | -10/Materials | Destroyed by S-10 Pest with Light Assault Rifle Last Messages --------------- 6x Alarm Trap 6x Alarm Trap 4x Alarm Trap Map updated. >>Alert(Check) Current Alert Level: Low Security Connecting with Terminal... W-16 Scout sends out distress signal. S-10 Pest destroyed. W-16 Scout sends out distress signal. R-06 Scavenger collects Hcp. Storage Unit. Lgt. Treads destroyed. Critical hit (Burn: +37). Dropped Imp. Heat Sink. Dropped Lgt. Assault Rifle. Dropped Particle Gun. Dropped Ion Engine. Acquired 19 matter. Acquired Flight Unit. Flight Unit destroyed. Map ----- +----------------------------------------------------+ | ??????# ^^ #?# # # | | ??????+ ^^ % * #?# | ###### | | ??????# ^^ #?# !#????? | | ??????# ###+########## #?# #######????? | | ??????# #?# ## #?# ???????????? | | ??????# #?# ## #?#????????????? | | ??????+ =#?# ## #??????????????? | | ??????#!*=### """ """ ## #??????????????? | | ??????#!!! + """ """ #? ?????????????? | | ??????#!//### """ """ ?? ????????????? | | ??????### #?# ?? ???????????? | | ????????# ### ??## ######???????????? | | ????????# T###########???? #????????????????? | | ????????# ##?????????????? #????????????????? | | ????????# #??????????????? ?????????????????? | | ????????#!#?????????????????????????????????? | | ????????#!#?####????????????????????????????? | | ??????### ### !##???????????????????????????? | | ####### !!* !#???????????????????????????? | | = #???????????????????????????? | | T !#???????????????????????????? | | = ! !#???????????????????????????? | | ####+## ! !##???????????????????????????? | | ??????## ##############+#########+##??????? | | ???????# ^^ T ^ ???? | | ???????# g * ^^ @ k ???? | | ???????# g[![^^[% s g ???? | | ???????# #########/####### !!! ???? | | ???????# #?????? ?????? !!!^ ????? | | ???????# T?????# [[ #?????!!! ????? | | ???????# #?????# [[ #??????? ^ ?????? | | ???????# #?????# [[ #???????? ?????? | | ???????# #?????# #????????? w ?????? | | ???????# #?????# +??????????? ??????? | | ???????# #?????########????????????"??????? | | ???????+ #????????????????^???????????????? | | ???????# #????????????????????????????????? | | ???????# ?????????????????????????????????? | | ???????# ?????????????????????????????????? | | ???????# ?????????????????????????????????? | | ???????? ?????????????????????????????????? | | ????????????????????????????????????????????? | | ????????????????????????????????????????????? | | ????????????????????????????????????????????? | | ????????????????????????????????????????????? | | ????????????????????????????????????????????? | | ????????????????????????????????????????????? | | ????????????????????????????????????????????? | | ????????????????????????????????????????????? | | ????????????????????????????????????????????? | +----------------------------------------------------+ Best States ------------- Heat Dissipation 39 Energy Generation 10 Energy Capacity 250 Matter Stores 300 Matter Capacity 300 Sight Range 16 Terrain Scan Density 10 Evasion (%) 50 Recoil Reduction 2 Item Schematics ----------------- None Robot Schematics ------------------ None Fabricated ------------ Nothing Repaired ---------- Nothing Studied --------- None Alien Tech Used ----------------- None Achievements -------------- None Challenges ------------ None Game ------ Seed GunNullProcessor Manual? 0 Play Time 00:06:30 Cumulative 200.9 hours Start 2025.10.31 @ 06:13:13 End 2025.10.31 @ 06:16:38 Sessions 1 Manual Loads 0 Difficulty Rogue Special Mode None Game No. 590 Rogue 589 Adventurer 1 Explorer 0 Win Type - Total 0 Types 0/0/0/0/0/0/0/0/0/0 Lore% 64 Gallery% 60 Achievement% 34 Wizard Run 0 Options --------- Layout 1 ASCII 0 Keyboard 0 Movement Mouse Keybinds 0 Fullscreen 1 Font 24/Smallcaps Map View 50x35 Zoom Use 0% Tactical HUD 0 Map Filters NONE Filters NONE Steam 1 RUN: 525f77e9-7d32-4559-89c3-f1566dfedab2